[Event "Early-Titled-Tuesday-Blitz-September-12-2023"]
[Site "Chess.com"]
[Date "2023.09.12"]
[Round "6"]
[White "maracayo"]
[Black "HansOnTwitch"]
[Result "0-1"]
[WhiteElo "2456"]
[BlackElo "3039"]
[TimeControl "180+1"]
[EndTime "9:02:39 PDT"]
[Termination "HansOnTwitch won by resignation"]

1. e4 {[%clk 0:03:00.9]} 1... c5 {[%clk 0:02:59.9]} 2. Nf3 {[%clk 0:02:59.9]}
2... Nc6 {[%clk 0:03:00.5]} 3. Bb5 {[%clk 0:02:58.8]} 3... g6 {[%clk 0:03:01]}
4. Bxc6 {[%clk 0:02:57.4]} 4... bxc6 {[%clk 0:03:01.9]} 5. O-O {[%clk
0:02:51.6]} 5... Bg7 {[%clk 0:03:01.2]} 6. d3 {[%clk 0:02:49.9]} 6... d6 {[%clk
0:03:00.4]} 7. e5 {[%clk 0:02:46.1]} 7... dxe5 {[%clk 0:03:00.6]} 8. Re1 {[%clk
0:02:43.5]} 8... f6 {[%clk 0:03:00.6]} 9. Be3 {[%clk 0:02:40]} 9... c4 {[%clk
0:03:00.5]} 10. d4 {[%clk 0:02:28]} 10... e4 {[%clk 0:02:59.8]} 11. Nfd2 {[%clk
0:02:26.9]} 11... f5 {[%clk 0:02:56.1]} 12. Nxc4 {[%clk 0:02:24.6]} 12... Nf6
{[%clk 0:02:56.2]} 13. Nc3 {[%clk 0:02:23.5]} 13... Ng4 {[%clk 0:02:52.2]} 14.
d5 {[%clk 0:02:17.4]} 14... Bxc3 {[%clk 0:02:40.6]} 15. bxc3 {[%clk 0:02:16.4]}
15... Qxd5 {[%clk 0:02:37.6]} 16. Qxd5 {[%clk 0:02:00.4]} 16... cxd5 {[%clk
0:02:38.5]} 17. h3 {[%clk 0:01:58.2]} 17... Nxe3 {[%clk 0:02:37]} 18. Nxe3
{[%clk 0:01:57.8]} 18... e6 {[%clk 0:02:35]} 19. Red1 {[%clk 0:01:57.7]} 19...
Ba6 {[%clk 0:02:34.4]} 20. Rab1 {[%clk 0:01:56.5]} 20... Ke7 {[%clk 0:02:26.6]}
21. Rb4 {[%clk 0:01:50.9]} 21... Rhc8 {[%clk 0:02:25.4]} 22. Ra4 {[%clk
0:01:49.8]} 22... Rc6 {[%clk 0:02:12.1]} 23. c4 {[%clk 0:01:46.5]} 23... Bxc4
{[%clk 0:02:07.8]} 24. Nxc4 {[%clk 0:01:42.8]} 24... Rxc4 {[%clk 0:02:08.7]} 25.
Rxc4 {[%clk 0:01:39.8]} 25... dxc4 {[%clk 0:02:09.6]} 26. Rb1 {[%clk 0:01:39.7]}
26... Rd8 {[%clk 0:02:09.2]} 27. Rb4 {[%clk 0:01:36.9]} 27... Rd1+ {[%clk
0:02:07.9]} 28. Kh2 {[%clk 0:01:35.9]} 28... Rd2 {[%clk 0:02:08.8]} 29. Rxc4
{[%clk 0:01:35.1]} 29... Rxf2 {[%clk 0:02:08.9]} 30. Kg3 {[%clk 0:01:33.4]}
30... e3 {[%clk 0:02:09.1]} 0-1

[Event "Early-Titled-Tuesday-Blitz-September-12-2023"]
[Site "Chess.com"]
[Date "2023.09.12"]
[Round "6"]
[White "F-Ghaith2021"]
[Black "DrDreBeats"]
[Result "0-1"]
[WhiteElo "2290"]
[BlackElo "2532"]
[TimeControl "180+1"]
[EndTime "9:02:39 PDT"]
[Termination "DrDreBeats won by resignation"]

1. e4 {[%clk 0:03:00.5]} 1... d5 {[%clk 0:02:59.8]} 2. exd5 {[%clk 0:03:00.2]}
2... Qxd5 {[%clk 0:03:00.7]} 3. Nc3 {[%clk 0:03:00.4]} 3... Qa5 {[%clk
0:03:00.8]} 4. d4 {[%clk 0:03:00.4]} 4... Nf6 {[%clk 0:03:01.2]} 5. Bc4 {[%clk
0:03:00.5]} 5... Bg4 {[%clk 0:03:00.8]} 6. Qd3 {[%clk 0:02:52.2]} 6... Nc6
{[%clk 0:02:58.3]} 7. Bd2 {[%clk 0:02:46.6]} 7... Nb4 {[%clk 0:02:58]} 8. Qg3
{[%clk 0:02:35.1]} 8... Nxc2+ {[%clk 0:02:57.2]} 9. Kf1 {[%clk 0:02:29]} 9...
Nxa1 {[%clk 0:02:53.3]} 10. h3 {[%clk 0:00:53]} 10... Bf5 {[%clk 0:02:47]} 11.
Nf3 {[%clk 0:00:52.5]} 11... e6 {[%clk 0:02:42]} 12. Nb5 {[%clk 0:00:52.5]}
12... Bb4 {[%clk 0:02:36.2]} 13. Nxc7+ {[%clk 0:00:48.2]} 13... Ke7 {[%clk
0:02:34.9]} 14. Bxb4+ {[%clk 0:00:45]} 14... Qxb4 {[%clk 0:02:33.7]} 15. Ne5
{[%clk 0:00:39.2]} 15... Rac8 {[%clk 0:02:29.1]} 16. Na6 {[%clk 0:00:39.4]}
16... bxa6 {[%clk 0:02:24.5]} 0-1

[Event "Early-Titled-Tuesday-Blitz-September-12-2023"]
[Site "Chess.com"]
[Date "2023.09.12"]
[Round "6"]
[White "APOKALIPSA13"]
[Black "esrosenberg"]
[Result "1-0"]
[WhiteElo "2265"]
[BlackElo "2351"]
[TimeControl "180+1"]
[EndTime "9:03:02 PDT"]
[Termination "APOKALIPSA13 won by resignation"]

1. e4 {[%clk 0:02:57.9]} 1... g6 {[%clk 0:02:58.4]} 2. h4 {[%clk 0:02:57.3]}
2... h5 {[%clk 0:02:58]} 3. d4 {[%clk 0:02:57]} 3... Bg7 {[%clk 0:02:58.2]} 4.
e5 {[%clk 0:02:57.6]} 4... d6 {[%clk 0:02:57.1]} 5. f4 {[%clk 0:02:56]} 5...
dxe5 {[%clk 0:02:55]} 6. fxe5 {[%clk 0:02:56.9]} 6... c5 {[%clk 0:02:54.4]} 7.
c3 {[%clk 0:02:57.2]} 7... Nc6 {[%clk 0:02:48.8]} 8. Nf3 {[%clk 0:02:57.3]} 8...
Bg4 {[%clk 0:02:48.5]} 9. Bb5 {[%clk 0:02:56]} 9... Nh6 {[%clk 0:02:43.3]} 10.
d5 {[%clk 0:02:50.8]} 10... a6 {[%clk 0:02:43.1]} 11. Ba4 {[%clk 0:02:39.4]}
11... b5 {[%clk 0:02:36.6]} 12. dxc6 {[%clk 0:02:39.6]} 12... bxa4 {[%clk
0:02:36.5]} 13. Qxa4 {[%clk 0:02:40.3]} 13... O-O {[%clk 0:02:34]} 14. Bf4
{[%clk 0:02:18.2]} 14... Bxf3 {[%clk 0:02:27.9]} 15. gxf3 {[%clk 0:02:17.2]}
15... Qd3 {[%clk 0:02:28.4]} 16. Nd2 {[%clk 0:02:15.8]} 16... Rab8 {[%clk
0:01:46.9]} 17. O-O-O {[%clk 0:02:00]} 17... Rb5 {[%clk 0:01:31.7]} 18. Qxa6
{[%clk 0:01:52.4]} 18... Rfb8 {[%clk 0:00:57]} 19. c7 {[%clk 0:01:49.2]} 1-0

[Event "Early-Titled-Tuesday-Blitz-September-12-2023"]
[Site "Chess.com"]
[Date "2023.09.12"]
[Round "6"]
[White "giomar27"]
[Black "Massakru"]
[Result "0-1"]
[WhiteElo "2266"]
[BlackElo "2397"]
[TimeControl "180+1"]
[EndTime "9:03:08 PDT"]
[Termination "Massakru won by resignation"]

1. d4 {[%clk 0:02:58.2]} 1... Nf6 {[%clk 0:02:59.6]} 2. Nc3 {[%clk 0:02:57.6]}
2... d5 {[%clk 0:02:59.3]} 3. Bf4 {[%clk 0:02:57.5]} 3... a6 {[%clk 0:02:59.4]}
4. e3 {[%clk 0:02:57.1]} 4... b5 {[%clk 0:02:59.2]} 5. h4 {[%clk 0:02:57.1]}
5... b4 {[%clk 0:02:55.2]} 6. Nb1 {[%clk 0:02:53.5]} 6... e6 {[%clk 0:02:49.3]}
7. Bd3 {[%clk 0:02:45.2]} 7... Nbd7 {[%clk 0:02:45.4]} 8. Nf3 {[%clk 0:02:44.6]}
8... c5 {[%clk 0:02:45.4]} 9. c3 {[%clk 0:02:44.1]} 9... c4 {[%clk 0:02:42.4]}
10. Bc2 {[%clk 0:02:44.3]} 10... Qb6 {[%clk 0:02:40.1]} 11. Nbd2 {[%clk
0:02:43.2]} 11... bxc3 {[%clk 0:02:36]} 12. bxc3 {[%clk 0:02:43.2]} 12... Qb2
{[%clk 0:02:35.7]} 13. O-O {[%clk 0:02:35.1]} 13... Qxc3 {[%clk 0:02:34.5]} 14.
Ba4 {[%clk 0:02:28.2]} 14... Qa5 {[%clk 0:02:33]} 15. Ne5 {[%clk 0:02:28]} 15...
Bd6 {[%clk 0:02:04.6]} 16. Nxd7 {[%clk 0:02:26.4]} 16... Bxd7 {[%clk 0:02:03.2]}
17. Bxd7+ {[%clk 0:02:18.3]} 17... Kxd7 {[%clk 0:02:02.8]} 18. Bxd6 {[%clk
0:02:18.4]} 18... Kxd6 {[%clk 0:02:02.9]} 19. Nf3 {[%clk 0:02:09.9]} 19... Nd7
{[%clk 0:01:58.3]} 20. Re1 {[%clk 0:02:04.9]} 20... f5 {[%clk 0:01:54.2]} 21.
Ng5 {[%clk 0:02:01.5]} 21... Ke7 {[%clk 0:01:47.3]} 22. Qh5 {[%clk 0:01:57.8]}
22... Raf8 {[%clk 0:01:27]} 23. f3 {[%clk 0:01:43.3]} 23... Nf6 {[%clk 0:01:23]}
0-1

[Event "Early-Titled-Tuesday-Blitz-September-12-2023"]
[Site "Chess.com"]
[Date "2023.09.12"]
[Round "6"]
[White "ozates"]
[Black "Kirill_Klukin"]
[Result "0-1"]
[WhiteElo "2553"]
[BlackElo "2757"]
[TimeControl "180+1"]
[EndTime "9:03:17 PDT"]
[Termination "Kirill_Klukin won by resignation"]

1. e4 {[%clk 0:03:00.4]} 1... c5 {[%clk 0:02:59.7]} 2. Nf3 {[%clk 0:02:57.8]}
2... g6 {[%clk 0:02:59.7]} 3. d4 {[%clk 0:02:55.3]} 3... cxd4 {[%clk 0:03:00.6]}
4. Qxd4 {[%clk 0:02:42.3]} 4... Nf6 {[%clk 0:03:00.5]} 5. Nc3 {[%clk 0:02:41.2]}
5... Nc6 {[%clk 0:03:00.5]} 6. Qa4 {[%clk 0:02:41.7]} 6... d6 {[%clk 0:03:00.7]}
7. e5 {[%clk 0:02:42.3]} 7... dxe5 {[%clk 0:03:01.6]} 8. Nxe5 {[%clk 0:02:43.2]}
8... Bd7 {[%clk 0:03:01.7]} 9. Nxd7 {[%clk 0:02:43.7]} 9... Nxd7 {[%clk
0:03:02.6]} 10. Be3 {[%clk 0:02:41.8]} 10... Bg7 {[%clk 0:03:02.7]} 11. Bb5
{[%clk 0:02:34.3]} 11... O-O {[%clk 0:03:01.4]} 12. Rd1 {[%clk 0:02:33.9]} 12...
Qc8 {[%clk 0:02:51.1]} 13. O-O {[%clk 0:02:32.5]} 13... Nb6 {[%clk 0:02:37.5]}
14. Qh4 {[%clk 0:02:31.6]} 14... Ne5 {[%clk 0:02:35.8]} 15. Bxb6 {[%clk
0:02:25.4]} 15... axb6 {[%clk 0:02:35]} 16. Nd5 {[%clk 0:02:25.9]} 16... Qxc2
{[%clk 0:02:21.3]} 17. Nxe7+ {[%clk 0:02:20.9]} 17... Kh8 {[%clk 0:02:20.5]} 18.
a4 {[%clk 0:02:13.8]} 18... Qxb2 {[%clk 0:02:15.5]} 19. Rfe1 {[%clk 0:02:06.9]}
19... Nc6 {[%clk 0:01:44.8]} 20. Nxc6 {[%clk 0:02:00.1]} 20... bxc6 {[%clk
0:01:43.3]} 21. Bxc6 {[%clk 0:02:01]} 21... Rac8 {[%clk 0:01:43.2]} 22. Qe4
{[%clk 0:01:50.9]} 22... Bf6 {[%clk 0:01:31.6]} 23. h3 {[%clk 0:01:46.8]} 23...
Rcd8 {[%clk 0:01:29.8]} 24. Bb5 {[%clk 0:01:39.3]} 24... Kg7 {[%clk 0:01:26]}
25. Rd4 {[%clk 0:01:36.7]} 25... Qxd4 {[%clk 0:01:23.4]} 0-1

[Event "Early-Titled-Tuesday-Blitz-September-12-2023"]
[Site "Chess.com"]
[Date "2023.09.12"]
[Round "6"]
[White "Zkid"]
[Black "Frolyanov_D"]
[Result "0-1"]
[WhiteElo "2885"]
[BlackElo "2669"]
[TimeControl "180+1"]
[EndTime "9:03:26 PDT"]
[Termination "Frolyanov_D won by resignation"]

1. e4 {[%clk 0:03:00.9]} 1... e5 {[%clk 0:02:59.6]} 2. Nf3 {[%clk 0:03:01.1]}
2... Nf6 {[%clk 0:02:59.8]} 3. d4 {[%clk 0:03:00.8]} 3... Nxe4 {[%clk
0:02:59.4]} 4. dxe5 {[%clk 0:02:59.4]} 4... d5 {[%clk 0:02:58.5]} 5. Nbd2 {[%clk
0:02:59]} 5... Nxd2 {[%clk 0:02:54.4]} 6. Bxd2 {[%clk 0:02:59.9]} 6... Be7
{[%clk 0:02:54.4]} 7. Bd3 {[%clk 0:02:59.7]} 7... c5 {[%clk 0:02:52]} 8. c3
{[%clk 0:02:59.6]} 8... Nc6 {[%clk 0:02:51.7]} 9. O-O {[%clk 0:02:53.7]} 9...
Be6 {[%clk 0:02:50.2]} 10. Qc2 {[%clk 0:02:48.5]} 10... Qd7 {[%clk 0:02:49.6]}
11. Rfe1 {[%clk 0:02:44.1]} 11... h6 {[%clk 0:02:46.6]} 12. Rad1 {[%clk
0:02:29.6]} 12... g5 {[%clk 0:02:45.8]} 13. Bc1 {[%clk 0:02:18.9]} 13... g4
{[%clk 0:02:43.3]} 14. Nd2 {[%clk 0:02:18.9]} 14... h5 {[%clk 0:02:40.7]} 15.
Nf1 {[%clk 0:02:10.5]} 15... O-O-O {[%clk 0:02:37.6]} 16. Bf4 {[%clk 0:01:58]}
16... h4 {[%clk 0:02:37.1]} 17. b4 {[%clk 0:01:56]} 17... h3 {[%clk 0:02:19.9]}
18. g3 {[%clk 0:01:44.6]} 18... cxb4 {[%clk 0:02:19.9]} 19. cxb4 {[%clk
0:01:42.8]} 19... Kb8 {[%clk 0:02:20.5]} 20. a3 {[%clk 0:01:38]} 20... Nd4
{[%clk 0:02:19.1]} 21. Qb2 {[%clk 0:01:35.7]} 21... Nf3+ {[%clk 0:02:17.8]} 22.
Kh1 {[%clk 0:01:36.3]} 22... Nxe1 {[%clk 0:02:15.3]} 23. Rxe1 {[%clk 0:01:37.2]}
23... Ka8 {[%clk 0:02:15.1]} 24. Nd2 {[%clk 0:01:35.3]} 24... Rc8 {[%clk
0:02:10.3]} 25. Nb3 {[%clk 0:01:31.2]} 25... d4 {[%clk 0:02:10.3]} 26. Nxd4
{[%clk 0:01:25.2]} 26... Rhd8 {[%clk 0:02:01.8]} 27. Nxe6 {[%clk 0:01:24.5]}
27... Qxd3 {[%clk 0:01:57.3]} 0-1

[Event "Early-Titled-Tuesday-Blitz-September-12-2023"]
[Site "Chess.com"]
[Date "2023.09.12"]
[Round "6"]
[White "LoaySameer"]
[Black "AniJak"]
[Result "1-0"]
[WhiteElo "2526"]
[BlackElo "2389"]
[TimeControl "180+1"]
[EndTime "9:03:26 PDT"]
[Termination "LoaySameer won by resignation"]

1. Nf3 {[%clk 0:03:00.9]} 1... d5 {[%clk 0:02:58.6]} 2. g3 {[%clk 0:03:01.8]}
2... Nf6 {[%clk 0:02:57.6]} 3. Bg2 {[%clk 0:03:02.4]} 3... c6 {[%clk 0:02:55]}
4. O-O {[%clk 0:03:02.6]} 4... Bf5 {[%clk 0:02:54.5]} 5. d3 {[%clk 0:03:02.1]}
5... h6 {[%clk 0:02:54.4]} 6. Nbd2 {[%clk 0:03:02.3]} 6... e6 {[%clk 0:02:54.7]}
7. b3 {[%clk 0:03:02.9]} 7... Bh7 {[%clk 0:02:53]} 8. Bb2 {[%clk 0:03:03.1]}
8... Be7 {[%clk 0:02:53.3]} 9. e4 {[%clk 0:03:03.2]} 9... O-O {[%clk 0:02:52.1]}
10. Qe2 {[%clk 0:03:03.3]} 10... Nbd7 {[%clk 0:02:41]} 11. Ne5 {[%clk
0:03:02.5]} 11... Nxe5 {[%clk 0:02:38]} 12. Bxe5 {[%clk 0:03:03.4]} 12... a5
{[%clk 0:02:34.4]} 13. a3 {[%clk 0:02:58.8]} 13... d4 {[%clk 0:02:28.6]} 14.
Bxf6 {[%clk 0:02:57.9]} 14... Bxf6 {[%clk 0:02:27.3]} 15. f4 {[%clk 0:02:58.8]}
15... Be7 {[%clk 0:02:20]} 16. Kh1 {[%clk 0:02:57.2]} 16... b5 {[%clk
0:02:17.6]} 17. f5 {[%clk 0:02:56]} 17... exf5 {[%clk 0:02:16.2]} 18. exf5
{[%clk 0:02:56.9]} 18... Re8 {[%clk 0:02:13.7]} 19. Bxc6 {[%clk 0:02:51.8]}
19... Rc8 {[%clk 0:02:07.6]} 20. Bxe8 {[%clk 0:02:50.5]} 20... Qxe8 {[%clk
0:02:06.5]} 21. Ne4 {[%clk 0:02:50.8]} 21... Qd7 {[%clk 0:02:03.1]} 22. g4
{[%clk 0:02:37.5]} 22... h5 {[%clk 0:01:52.6]} 23. h3 {[%clk 0:02:26.1]} 23...
hxg4 {[%clk 0:01:51.9]} 24. hxg4 {[%clk 0:02:27]} 24... Qd5 {[%clk 0:01:39.4]}
25. a4 {[%clk 0:02:24.8]} 25... b4 {[%clk 0:01:37.9]} 26. Rae1 {[%clk 0:02:20]}
26... f6 {[%clk 0:01:27.2]} 27. Kg2 {[%clk 0:02:15.8]} 27... Kf7 {[%clk
0:01:26]} 28. Rf2 {[%clk 0:02:11.1]} 28... Bg8 {[%clk 0:01:17]} 29. Qf3 {[%clk
0:02:09.2]} 29... Kf8 {[%clk 0:01:09.3]} 30. Rh1 {[%clk 0:02:09.2]} 30... Qc6
{[%clk 0:01:07.8]} 31. Rh8 {[%clk 0:02:07.8]} 31... g6 {[%clk 0:00:59.2]} 32.
fxg6 {[%clk 0:02:00.1]} 1-0

[Event "Early-Titled-Tuesday-Blitz-September-12-2023"]
[Site "Chess.com"]
[Date "2023.09.12"]
[Round "6"]
[White "Jospem"]
[Black "kacprekt"]
[Result "1-0"]
[WhiteElo "3097"]
[BlackElo "2468"]
[TimeControl "180+1"]
[EndTime "9:03:31 PDT"]
[Termination "Jospem won by resignation"]

1. e4 {[%clk 0:03:00.9]} 1... e6 {[%clk 0:03:00]} 2. d4 {[%clk 0:03:00.9]} 2...
d5 {[%clk 0:03:00.3]} 3. Nd2 {[%clk 0:03:01.6]} 3... Ne7 {[%clk 0:02:59.2]} 4.
Ngf3 {[%clk 0:03:02.1]} 4... Nd7 {[%clk 0:02:59.1]} 5. c3 {[%clk 0:03:02.5]}
5... c5 {[%clk 0:02:58.5]} 6. Bd3 {[%clk 0:03:03]} 6... cxd4 {[%clk 0:02:56.3]}
7. cxd4 {[%clk 0:03:03.9]} 7... dxe4 {[%clk 0:02:54.8]} 8. Nxe4 {[%clk
0:03:04.8]} 8... Nd5 {[%clk 0:02:54.6]} 9. O-O {[%clk 0:03:04.7]} 9... Be7
{[%clk 0:02:49.6]} 10. Nc3 {[%clk 0:03:04.3]} 10... Nxc3 {[%clk 0:02:47.5]} 11.
bxc3 {[%clk 0:03:05.2]} 11... O-O {[%clk 0:02:46.6]} 12. Qe2 {[%clk 0:03:05.9]}
12... Nf6 {[%clk 0:02:45.5]} 13. Ne5 {[%clk 0:03:04.6]} 13... Bd7 {[%clk
0:02:42.8]} 14. Qf3 {[%clk 0:03:03.4]} 14... Qc8 {[%clk 0:02:37.1]} 15. Qh3
{[%clk 0:03:01]} 15... Bc6 {[%clk 0:02:33]} 16. Bg5 {[%clk 0:02:59]} 16... h6
{[%clk 0:02:27.4]} 17. Bxh6 {[%clk 0:02:09.9]} 17... gxh6 {[%clk 0:02:26.6]} 18.
Rae1 {[%clk 0:02:10.7]} 18... Kg7 {[%clk 0:02:11.1]} 19. f4 {[%clk 0:02:08.3]}
19... Rh8 {[%clk 0:02:09]} 20. f5 {[%clk 0:02:08.2]} 20... Bd5 {[%clk
0:01:48.2]} 21. c4 {[%clk 0:02:05]} 21... Qd8 {[%clk 0:01:35.7]} 22. cxd5 {[%clk
0:01:59]} 22... Qxd5 {[%clk 0:01:36.6]} 23. fxe6 {[%clk 0:01:57.7]} 23... Qxd4+
{[%clk 0:01:28.1]} 24. Kh1 {[%clk 0:01:57.6]} 24... Bb4 {[%clk 0:01:15.9]} 25.
Qg3+ {[%clk 0:01:54.6]} 25... Kf8 {[%clk 0:01:13.9]} 26. Rxf6 {[%clk 0:01:49.7]}
26... Bxe1 {[%clk 0:01:12.8]} 27. Rxf7+ {[%clk 0:01:50.1]} 27... Ke8 {[%clk
0:01:13.2]} 28. Qxe1 {[%clk 0:01:37.4]} 28... a6 {[%clk 0:01:08.6]} 29. Bg6
{[%clk 0:01:33.4]} 1-0

[Event "Early-Titled-Tuesday-Blitz-September-12-2023"]
[Site "Chess.com"]
[Date "2023.09.12"]
[Round "6"]
[White "MartinMatthiesen"]
[Black "Masterbeaterr"]
[Result "0-1"]
[WhiteElo "2506"]
[BlackElo "2407"]
[TimeControl "180+1"]
[EndTime "9:03:38 PDT"]
[Termination "Masterbeaterr won by resignation"]

1. d4 {[%clk 0:03:00.9]} 1... d5 {[%clk 0:02:59.7]} 2. c4 {[%clk 0:02:58.9]}
2... dxc4 {[%clk 0:03:00.6]} 3. Nf3 {[%clk 0:02:58.4]} 3... Nf6 {[%clk
0:02:59.8]} 4. e3 {[%clk 0:02:58.4]} 4... e6 {[%clk 0:03:00.4]} 5. Bxc4 {[%clk
0:02:58.4]} 5... c5 {[%clk 0:03:00.9]} 6. O-O {[%clk 0:02:58]} 6... Nc6 {[%clk
0:03:01.2]} 7. Qe2 {[%clk 0:02:54.6]} 7... cxd4 {[%clk 0:03:01.3]} 8. Rd1 {[%clk
0:02:54.6]} 8... Be7 {[%clk 0:03:01.9]} 9. exd4 {[%clk 0:02:54.4]} 9... O-O
{[%clk 0:03:01.8]} 10. Nc3 {[%clk 0:02:54.1]} 10... Na5 {[%clk 0:03:02.3]} 11.
Bd3 {[%clk 0:02:43]} 11... b6 {[%clk 0:03:02.9]} 12. Bg5 {[%clk 0:02:36.9]}
12... Bb7 {[%clk 0:03:03.3]} 13. Ne5 {[%clk 0:01:55.5]} 13... Nd5 {[%clk
0:03:01.7]} 14. Qh5 {[%clk 0:01:06.2]} 14... f5 {[%clk 0:03:01.7]} 15. Bxe7
{[%clk 0:00:55.4]} 15... Qxe7 {[%clk 0:03:02.6]} 16. Re1 {[%clk 0:00:51.7]}
16... Nf4 {[%clk 0:03:01.9]} 17. Qd1 {[%clk 0:00:48.7]} 17... Nxg2 {[%clk
0:03:01.6]} 18. Qd2 {[%clk 0:00:34.9]} 18... Rad8 {[%clk 0:02:56]} 19. Ba6
{[%clk 0:00:24]} 19... Nxe1 {[%clk 0:02:51.2]} 20. Bxb7 {[%clk 0:00:23.9]} 20...
Qxb7 {[%clk 0:02:45.2]} 21. Rxe1 {[%clk 0:00:23.2]} 21... Nc6 {[%clk 0:02:41.4]}
22. Nf3 {[%clk 0:00:21.7]} 22... Rf6 {[%clk 0:02:35.9]} 23. Qf4 {[%clk
0:00:19.8]} 23... Rg6+ {[%clk 0:02:34.4]} 24. Kf1 {[%clk 0:00:20.2]} 24... Qa6+
{[%clk 0:02:32.3]} 25. Re2 {[%clk 0:00:19]} 25... Qd3 {[%clk 0:02:26.6]} 26. h3
{[%clk 0:00:15.7]} 26... Nxd4 {[%clk 0:02:19.6]} 27. Ne5 {[%clk 0:00:15.9]}
27... Qxh3+ {[%clk 0:02:18]} 28. Ke1 {[%clk 0:00:16.3]} 28... Qh1+ {[%clk
0:02:15.2]} 0-1

[Event "Early-Titled-Tuesday-Blitz-September-12-2023"]
[Site "Chess.com"]
[Date "2023.09.12"]
[Round "6"]
[White "Witik"]
[Black "santosalberto1987"]
[Result "1-0"]
[WhiteElo "2741"]
[BlackElo "2545"]
[TimeControl "180+1"]
[EndTime "9:03:39 PDT"]
[Termination "Witik won by resignation"]

1. d4 {[%clk 0:02:59.6]} 1... d5 {[%clk 0:03:00]} 2. Bf4 {[%clk 0:02:57.9]} 2...
Nf6 {[%clk 0:02:59.7]} 3. e3 {[%clk 0:02:58.3]} 3... c5 {[%clk 0:02:58.6]} 4. c3
{[%clk 0:02:58.7]} 4... Nc6 {[%clk 0:02:58.7]} 5. Nd2 {[%clk 0:02:58.5]} 5...
Qb6 {[%clk 0:02:58.5]} 6. Qb3 {[%clk 0:02:58.3]} 6... c4 {[%clk 0:02:58.5]} 7.
Qc2 {[%clk 0:02:58.3]} 7... Bg4 {[%clk 0:02:56.3]} 8. b3 {[%clk 0:02:58.4]} 8...
cxb3 {[%clk 0:02:54.6]} 9. axb3 {[%clk 0:02:59.3]} 9... e6 {[%clk 0:02:53.3]}
10. Bd3 {[%clk 0:02:53.8]} 10... Rc8 {[%clk 0:02:52.7]} 11. Qb1 {[%clk
0:02:53.8]} 11... Be7 {[%clk 0:02:49.2]} 12. Ngf3 {[%clk 0:02:53.8]} 12... Bh5
{[%clk 0:02:46.7]} 13. O-O {[%clk 0:02:46.6]} 13... Bg6 {[%clk 0:02:46.4]} 14.
c4 {[%clk 0:02:39.5]} 14... dxc4 {[%clk 0:02:31.6]} 15. bxc4 {[%clk 0:02:33.8]}
15... Qxb1 {[%clk 0:02:31.2]} 16. Bxb1 {[%clk 0:02:33.6]} 16... O-O {[%clk
0:02:24.1]} 17. h3 {[%clk 0:02:33.5]} 17... Rfd8 {[%clk 0:02:17.2]} 18. Bxg6
{[%clk 0:02:24.8]} 18... hxg6 {[%clk 0:02:16.9]} 19. Rfb1 {[%clk 0:02:25.7]}
19... b6 {[%clk 0:02:17.1]} 20. Ne5 {[%clk 0:02:22.6]} 20... Nxe5 {[%clk
0:02:13.7]} 21. Bxe5 {[%clk 0:02:22.8]} 21... Rd7 {[%clk 0:02:08.2]} 22. Ra4
{[%clk 0:02:20.5]} 22... Ne8 {[%clk 0:01:30.7]} 23. Kf1 {[%clk 0:02:15.2]} 23...
Bd6 {[%clk 0:01:29.8]} 24. Nf3 {[%clk 0:01:52.7]} 24... Rdc7 {[%clk 0:01:26.1]}
25. Rba1 {[%clk 0:01:51.4]} 25... a5 {[%clk 0:01:18.9]} 26. Rb1 {[%clk
0:01:50.7]} 26... Rxc4 {[%clk 0:01:16.9]} 27. Rxc4 {[%clk 0:01:50.5]} 27... Rxc4
{[%clk 0:01:17.8]} 28. Rxb6 {[%clk 0:01:51]} 28... Bxe5 {[%clk 0:01:18]} 29.
Nxe5 {[%clk 0:01:51.1]} 29... g5 {[%clk 0:00:46.1]} 30. Nxc4 {[%clk 0:01:50.4]}
1-0

[Event "Early-Titled-Tuesday-Blitz-September-12-2023"]
[Site "Chess.com"]
[Date "2023.09.12"]
[Round "6"]
[White "DavidLana1987"]
[Black "RCone"]
[Result "0-1"]
[WhiteElo "2570"]
[BlackElo "2355"]
[TimeControl "180+1"]
[EndTime "9:03:41 PDT"]
[Termination "RCone won on time"]

1. e4 {[%clk 0:00:28.3]} 1... d6 {[%clk 0:03:00.9]} 2. Nf3 {[%clk 0:00:28.2]}
2... Nf6 {[%clk 0:03:01.1]} 3. Nc3 {[%clk 0:00:28.8]} 3... g6 {[%clk 0:03:01]}
4. Bc4 {[%clk 0:00:28.4]} 4... Bg7 {[%clk 0:02:58.1]} 5. O-O {[%clk 0:00:25.1]}
5... e5 {[%clk 0:02:57.7]} 6. d4 {[%clk 0:00:24.6]} 6... Nbd7 {[%clk 0:02:52.6]}
7. Bg5 {[%clk 0:00:24.4]} 7... h6 {[%clk 0:02:47.9]} 8. Bh4 {[%clk 0:00:23.9]}
8... c6 {[%clk 0:02:44.1]} 9. a4 {[%clk 0:00:22.8]} 9... a5 {[%clk 0:02:43.3]}
10. Ba2 {[%clk 0:00:22.3]} 10... O-O {[%clk 0:02:42.4]} 11. Re1 {[%clk
0:00:22.7]} 11... Qe7 {[%clk 0:02:41]} 12. Qd3 {[%clk 0:00:22]} 12... g5 {[%clk
0:02:31.9]} 13. Bg3 {[%clk 0:00:21.4]} 13... Nh5 {[%clk 0:02:32.6]} 14. dxe5
{[%clk 0:00:20.9]} 14... dxe5 {[%clk 0:02:31.8]} 15. Rad1 {[%clk 0:00:17.9]}
15... Qb4 {[%clk 0:02:18]} 16. Bb3 {[%clk 0:00:16.8]} 16... Nf4 {[%clk
0:02:13.1]} 17. Bxf4 {[%clk 0:00:16.5]} 17... exf4 {[%clk 0:02:12.8]} 18. e5
{[%clk 0:00:14.7]} 18... Nc5 {[%clk 0:02:10.5]} 19. Qc4 {[%clk 0:00:10.9]} 19...
Nxb3 {[%clk 0:02:08.8]} 0-1